fUSD/lending_fUSD_20240425
["ID","MTS","AMOUNT","RATE_DAILY","PERIOD"]
[323524340,1714067453124,-500.0,0.0001178,2]
[323524341,1714067453133,-500.0,0.0001178,2]
[323524342,1714067453143,-677.29,0.0001178,2]
[323524343,1714067453152,-156.2,0.0001178,2]
[323524344,1714067453162,-913.14,0.0001178,2]
[323524345,1714067453171,-500.0,0.0001178,2]
[323524346,1714067453180,-632.77,0.0001178,2]
[323524347,1714067453190,-500.0,0.0001178,2]
[323524348,1714067453200,-835.0,0.0001178,2]
[323524349,1714067453209,-576.38,0.0001178,2]
[323524350,1714067453218,-774.42,0.0001178,2]
[323524351,1714067453230,-537.21,0.0001178,2]
[323524352,1714067453239,-796.17,0.0001178,2]
[323524353,1714067453249,-500.0,0.0001178,2]
[323524354,1714067453258,-800.87,0.0001178,2]
[323524355,1714067453267,-500.0,0.0001178,2]
[323524356,1714067453277,-194.62,0.0001178,2]
[323524357,1714067453286,-500.0,0.0001178,2]
[323524358,1714067453295,-500.0,0.0001178,2]
[323524359,1714067453305,-500.0,0.0001178,2]
[323524360,1714067453315,-954.54,0.0001178,2]
[323524361,1714067453324,-500.0,0.0001178,2]
[323524362,1714067453333,-171.67,0.0001178,2]
[323524363,1714067453343,-500.0,0.0001178,2]
[323524364,1714067453353,-500.0,0.0001178,2]
[323524365,1714067453362,-500.0,0.0001178,2]
[323524366,1714067453374,-500.0,0.0001178,2]
[323524367,1714067453385,-500.0,0.0001178,2]
[323524368,1714067453396,-845.56,0.0001178,2]
[323524369,1714067453405,-500.0,0.0001178,2]
[323524370,1714067453415,-500.0,0.0001178,2]
[323524371,1714067453425,-500.0,0.0001178,2]
[323524372,1714067453436,-637.55,0.0001178,2]
[323524373,1714067453447,-500.0,0.0001178,2]
[323524374,1714067453457,-785.13,0.0001178,2]
[323524375,1714067453468,-500.0,0.0001178,2]
[323524376,1714067453480,-611.12,0.0001178,2]
[323524377,1714067453489,-500.0,0.0001178,2]
[323524378,1714067453498,-251.23,0.0001178,2]
[323524379,1714067453507,-237.1,0.0001178,2]
[323524380,1714067453517,-763.14,0.0001178,2]
[323524381,1714067453527,-500.0,0.0001178,2]
[323524382,1714067453537,-836.92,0.0001178,2]
[323524383,1714067453546,-500.0,0.0001178,2]
[323524384,1714067453556,-500.0,0.0001178,2]
[323524385,1714067453565,-500.0,0.0001178,2]
[323524386,1714067453575,-485.77,0.0001178,2]
[323524387,1714067453584,-500.0,0.0001178,2]
[323524388,1714067453593,-1006.08,0.0001178,2]
[323524389,1714067453601,-500.0,0.0001178,2]
[323524390,1714067453611,-500.0,0.0001178,2]
[323524391,1714067453620,-500.0,0.0001178,2]
[323524392,1714067453629,-500.0,0.0001178,2]
[323524393,1714067453638,-567.83,0.0001178,2]
[323524394,1714067453647,-537.47,0.0001178,2]
[323524395,1714067453656,-500.0,0.0001178,2]
[323524396,1714067453666,-894.31,0.0001178,2]
[323524397,1714067453674,-500.0,0.0001178,2]
[323524398,1714067453684,-584.6709293,0.0001178,2]
[323524399,1714067453693,-648.55,0.0001178,2]
[323524400,1714067453702,-500.0,0.0001178,2]
[323524401,1714067453711,-500.0,0.0001178,2]
[323524402,1714067453720,-500.0,0.0001178,2]
[323524403,1714067453730,-584.11,0.0001178,2]
[323524404,1714067453739,-500.0,0.0001178,2]
[323524405,1714067453749,-500.0,0.0001178,2]
[323524406,1714067453760,-500.0,0.0001178,2]
[323524407,1714067453769,-150.0,0.0001178,2]
[323524408,1714067453779,-500.0,0.0001178,2]
[323524409,1714067453788,-500.0,0.0001178,2]
[323524410,1714067453797,-500.0,0.0001178,2]
[323524411,1714067453806,-500.0,0.0001178,2]
[323524412,1714067453815,-540.93,0.0001178,2]
[323524413,1714067453824,-500.0,0.0001178,2]
[323524414,1714067453833,-500.0,0.0001178,2]
[323524415,1714067453842,-406.49661673,0.0001178,2]
[323524416,1714067453851,-500.0,0.0001178,2]
[323524417,1714067453860,-500.0,0.0001178,2]
[323524418,1714067453869,-500.0,0.0001178,2]
[323524419,1714067453878,-588.05,0.0001178,2]
[323524420,1714067453888,-500.0,0.0001178,2]
[323524421,1714067453898,-500.0,0.0001178,2]
[323524422,1714067453907,-500.0,0.0001178,2]
[323524423,1714067453916,-500.0,0.0001178,2]
[323524424,1714067453925,-500.0,0.0001178,2]
[323524425,1714067453934,-448.55122698,0.0001178,2]
[323524426,1714067453943,-542.44,0.0001178,2]
[323524427,1714067453952,-796.54,0.0001178,2]
[323524428,1714067453961,-500.0,0.0001178,2]
[323524429,1714067453971,-500.0,0.0001178,2]
[323524430,1714067453981,-914.08,0.0001178,2]
[323524431,1714067453991,-563.4,0.0001178,2]
[323524432,1714067454000,-668.11,0.0001178,2]
[323524433,1714067454011,-715.92,0.0001178,2]
[323524434,1714067454020,-500.0,0.0001178,2]
[323524435,1714067454030,-1121.85,0.0001178,2]
[323524436,1714067454039,-2051.83,0.0001178,2]
[323524437,1714067454049,-928.51,0.0001178,2]
[323524438,1714067454058,-854.92,0.0001178,2]
[323524439,1714067454068,-1005.82,0.0001178,2]
[323524440,1714067454077,-500.0,0.0001178,2]
[323524441,1714067454086,-223.8,0.0001178,2]
[323524442,1714067454096,-893.22,0.0001178,2]
[323524443,1714067454105,-500.0,0.0001178,2]
[323524444,1714067454114,-503.3,0.0001178,2]
[323524445,1714067454123,-215.21,0.0001178,2]
[323524446,1714067454133,-500.0,0.0001178,2]
[323524447,1714067454142,-1018.77,0.0001178,2]
[323524448,1714067454151,-500.0,0.0001178,2]
[323524449,1714067454160,-1601.08,0.0001178,2]
[323524450,1714067454170,-500.0,0.0001178,2]
[323524451,1714067454180,-500.0,0.0001178,2]
[323524452,1714067454189,-1114.47,0.0001178,2]
[323524453,1714067454199,-500.0,0.0001178,2]
[323524454,1714067454209,-1161.09,0.0001178,2]
[323524455,1714067454218,-500.0,0.0001178,2]
[323524456,1714067454229,-500.0,0.0001178,2]
[323524457,1714067454237,-500.0,0.0001178,2]
[323524458,1714067454247,-8685.8,0.0001178,2]
[323524459,1714067454256,-500.0,0.0001178,2]
[323524460,1714067454266,-939.59,0.0001178,2]
[323524461,1714067454275,-500.0,0.0001178,2]
[323524462,1714067454284,-500.0,0.0001178,2]
[323524463,1714067454294,-500.0,0.0001178,2]
[323524464,1714067454303,-500.0,0.0001178,2]
[323524465,1714067454312,-500.0,0.0001178,2]
[323524466,1714067454323,-742.33,0.0001178,2]
[323524467,1714067454333,-500.0,0.0001178,2]
[323524468,1714067454342,-762.04,0.0001178,2]
[323524469,1714067454353,-23399.23,0.0001178,2]
[323524470,1714067454363,-500.0,0.0001178,2]
[323524471,1714067454373,-500.0,0.0001178,2]
[323524472,1714067454385,-500.0,0.0001178,2]
[323524473,1714067454396,-858.56,0.0001178,2]
[323524474,1714067454406,-583.87,0.0001178,2]
[323524475,1714067454415,-500.0,0.0001178,2]
[323524476,1714067454427,-500.0,0.0001178,2]
[323524477,1714067454436,-500.0,0.0001178,2]
[323524478,1714067454445,-500.0,0.0001178,2]
[323524479,1714067454456,-829.37,0.0001178,2]
[323524480,1714067454465,-500.0,0.0001178,2]
[323524481,1714067454475,-500.0,0.0001178,2]
[323524482,1714067454484,-500.0,0.0001178,2]
[323524483,1714067454493,-500.0,0.0001178,2]
[323524484,1714067454502,-694.19,0.0001178,2]
[323524485,1714067454511,-680.95,0.0001178,2]
[323524486,1714067454520,-500.0,0.0001178,2]
[323524487,1714067454529,-713.51,0.0001178,2]
[323524488,1714067454538,-744.74,0.0001178,2]
[323524489,1714067454547,-500.0,0.0001178,2]
[323524490,1714067454556,-500.0,0.0001178,2]
[323524491,1714067454565,-500.0,0.0001178,2]
[323524492,1714067454575,-809.46,0.0001178,2]
[323524493,1714067454583,-530.54,0.0001178,2]
[323524494,1714067454592,-795.87,0.0001178,2]
[323524495,1714067454601,-2793.76,0.0001178,2]
[323524496,1714067454610,-2866.92,0.0001178,2]
[323524497,1714067454619,-1024.67,0.0001178,2]
[323524498,1714067454629,-1006.07,0.0001178,2]
[323524499,1714067454638,-1441.65,0.0001178,2]
[323524500,1714067454648,-736.56,0.0001178,2]
[323524501,1714067454658,-868.57,0.0001178,2]
[323524502,1714067454667,-781.36,0.0001178,2]
[323524503,1714067454676,-579.03,0.0001178,2]
[323524504,1714067454685,-500.0,0.0001178,2]
[323524505,1714067454695,-500.0,0.0001178,2]
[323524506,1714067454704,-500.0,0.0001178,2]
[323524507,1714067454713,-3410.08,0.0001178,2]
[323524508,1714067454722,-500.0,0.0001178,2]
[323524509,1714067454732,-320.41128404,0.0001178,2]
[323524510,1714067454741,-500.0,0.0001178,2]
[323524511,1714067454750,-500.0,0.0001178,2]
[323524512,1714067454759,-600.5,0.0001178,2]
[323524513,1714067454768,-966.23,0.0001178,2]
[323524514,1714067454777,-738.13,0.0001178,2]
[323524515,1714067454787,-895.36,0.0001178,2]
[323524516,1714067454796,-1187.29,0.0001178,2]
[323524517,1714067454805,-234.62065178,0.0001178,2]
[323524518,1714067454815,-707.57,0.0001178,2]
[323524519,1714067454824,-2917.02,0.0001178,2]
[323524520,1714067454834,-624.09,0.0001178,2]
[323524521,1714067454844,-500.0,0.0001178,2]
[323524522,1714067454855,-516.84,0.0001178,2]
[323524523,1714067454865,-500.0,0.0001178,2]
[323524524,1714067454874,-909.0,0.0001178,2]
[323524525,1714067454884,-500.0,0.0001178,2]
[323524526,1714067454893,-5963.92,0.0001178,2]
[323524527,1714067454902,-1111.7,0.0001178,2]
[323524528,1714067454911,-635.11,0.0001178,2]
[323524529,1714067454921,-500.0,0.0001178,2]
[323524530,1714067454931,-798.31,0.0001178,2]
[323524531,1714067454940,-677.93,0.0001178,2]
[323524532,1714067454950,-726.34,0.0001178,2]
[323524533,1714067454960,-552.87,0.0001178,2]
[323524534,1714067454969,-761.59,0.0001178,2]
[323524535,1714067454979,-924.15,0.0001178,2]
[323524536,1714067455149,-500.0,0.0001178,2]
[323524537,1714067455158,-1321.58,0.0001178,2]
[323524538,1714067455168,-309.83268982,0.0001178,2]
[323524539,1714067455178,-3943.14,0.0001178,2]
[323524540,1714067455187,-2153.13,0.0001178,2]
[323524541,1714067455197,-500.0,0.0001178,2]
[323524542,1714067455207,-764.31,0.0001178,2]
[323524543,1714067455216,-3035.98,0.0001178,2]
[323524544,1714067455227,-500.0,0.0001178,2]
[323524545,1714067455236,-1320.34,0.0001178,2]
[323524546,1714067455246,-500.0,0.0001178,2]
[323524547,1714067455255,-500.0,0.0001178,2]
[323524548,1714067455265,-500.0,0.0001178,2]
[323524549,1714067455274,-1758.69,0.0001178,2]
[323524550,1714067455283,-510.25,0.0001178,2]
[323524551,1714067455292,-500.0,0.0001178,2]
[323524552,1714067455301,-2401.15,0.0001178,2]
[323524553,1714067455311,-500.0,0.0001178,2]
[323524554,1714067455320,-1304.22,0.0001178,2]
[323524555,1714067455331,-263.37,0.0001178,2]
[323524556,1714067455341,-1167.6,0.0001178,2]
[323524557,1714067455351,-500.0,0.0001178,2]
[323524558,1714067455360,-500.0,0.0001178,2]
[323524559,1714067455371,-2259.06,0.0001178,2]
[323524560,1714067455384,-3469.79,0.0001178,2]
[323524561,1714067455393,-530.76,0.0001178,2]
[323524562,1714067455404,-3156.68,0.0001178,2]
[323524563,1714067455414,-500.0,0.0001178,2]
[323524564,1714067455423,-732.27,0.0001178,2]
[323524565,1714067455433,-500.0,0.0001178,2]
[323524566,1714067455445,-500.0,0.0001178,2]
[323524567,1714067455454,-500.0,0.0001178,2]
[323524568,1714067455466,-500.0,0.0001178,2]
[323524569,1714067455478,-4753.27,0.0001178,2]
[323524570,1714067455488,-1051.15,0.0001178,2]
[323524571,1714067455500,-500.0,0.0001178,2]
[323524572,1714067455511,-977.9,0.0001178,2]
[323524573,1714067455521,-535.34,0.0001178,2]
[323524574,1714067455531,-599.87851698,0.0001178,2]
[323524575,1714067455541,-837.85,0.0001178,2]
[323524576,1714067455550,-1890.94,0.0001178,2]
[323524577,1714067455560,-500.0,0.0001178,2]
[323524578,1714067455569,-500.0,0.0001178,2]
[323524579,1714067455578,-500.0,0.0001178,2]
[323524580,1714067455588,-500.0,0.0001178,2]
[323524581,1714067455598,-500.0,0.0001178,2]
[323524582,1714067455607,-1177.01,0.0001178,2]
[323524583,1714067455618,-500.0,0.0001178,2]
[323524584,1714067455627,-434.04855557,0.0001178,2]
[323524585,1714067455636,-1008.8,0.0001178,2]
[323524586,1714067455645,-2688.71180516,0.0001178,2]
[323524587,1714067455669,-266.51398,0.0001178,2]
[323524588,1714067455679,-323.405,0.0001178,2]
[323524589,1714067455691,-528.097667,0.0001178,2]
[323524590,1714067455725,-696.92,0.0001178,2]
[323524591,1714067456009,1471.99909209,7.788e-05,2]
[323524592,1714067456098,7501.09882979,7.788e-05,2]
[323524593,1714067456250,-500.0,0.00010958,2]
[323524594,1714067456266,-500.0,0.00010958,2]
[323524595,1714067456283,-760.50154784,0.0001178,2]
[323524596,1714067456297,-7383.25037595,0.0001178,2]
[323524597,1714067456314,-647.44,0.0001178,2]
[323524598,1714067456332,-1226.99999763,0.0001178,2]
[323524599,1714067456373,-200.35068603,0.00010957,2]
[323524600,1714067456391,-5772.25798828,0.0001178,2]
[323524601,1714067456460,-500.0,0.00010958,2]
[323524602,1714067456476,-5958.02163814,0.0001178,2]
[323524603,1714067456490,-589.81,0.0001178,2]
[323524604,1714067456503,-846.44,0.0001178,2]
[323524605,1714067456518,-500.0,0.0001178,2]
[323524606,1714067456533,-155.36499652,0.0001179,2]
[323524607,1714067456551,-180.76801919,0.0001188,2]
[323524608,1714067456565,-233.0,0.0001188,2]
[323524609,1714067456577,-7075.99217215,0.00011892,2]
[323524610,1714067456588,-7075.99217206,0.00011893,2]
[323524611,1714067456603,-7075.99217206,0.00011893,2]
[323524612,1714067456617,-7075.99217206,0.00011894,2]
[323524613,1714067456632,-7075.99217206,0.00011895,2]
[323524614,1714067456644,-400.0,0.00011895,2]
[323524615,1714067456655,-7075.99217206,0.00011896,2]
[323524616,1714067456671,-7075.99217206,0.00011896,2]
[323524617,1714067456684,-7075.99217206,0.00011897,2]
[323524618,1714067456697,-7075.99217206,0.00011898,2]
[323524619,1714067456710,-7075.99217206,0.00011899,2]
[323524620,1714067456722,-7075.99217206,0.00011899,2]
[323524621,1714067456736,-543.0,0.00011899,2]
[323524622,1714067456748,-7075.99217206,0.000119,2]
[323524623,1714067456761,-155.36499652,0.000119,2]
[323524624,1714067456774,-406.02333622,0.000119,2]
[323524625,1714067456786,-1851.18464364,0.000119,2]
[323524626,1714067456799,-1671.19123356,0.000119,2]
[323524627,1714067456811,-725.90498024,0.000119,2]
[323524628,1714067456824,-1000.0,0.00011903,2]
[323524629,1714067456836,-500.0,0.00011903,2]
[323524630,1714067456849,-1000.0,0.00011904,2]
[323524631,1714067456861,-1000.0,0.00011904,2]
[323524632,1714067456873,-500.0,0.00011904,2]
[323524633,1714067456886,-2236.53371,0.0001192,2]
[323524634,1714067456898,-2236.53372,0.0001199,2]
[323524635,1714067456911,-191.6052752,0.00011998,2]
[323524636,1714067456923,-276.55491206,0.00011998,2]
[323524637,1714067456936,-4730.25914393,0.00011998,2]
[323524638,1714067456948,-1393.78652472,0.00011998,2]
[323524639,1714067456961,-1060.52885847,0.00011999,2]
[323524640,1714067456973,-6405.2,0.00011999,2]
[323524641,1714067456987,-207.22680324,0.00011999,2]
[323524642,1714067456999,-2922.83629556,0.00011999,2]
[323524643,1714067457013,-1510.8594963,0.00011999,7]
[323524644,1714067457025,-17735.86906532,0.00012,2]
[323524645,1714067457041,-658.35,0.00012,2]
[323524646,1714067457162,-961.26976,0.00012,2]
[323524647,1714067457177,-1979.60713445,0.00012,2]
[323524648,1714067457192,-1037.17902075,0.00012,2]
[323524649,1714067457207,-1204.17105637,0.00012,2]
[323524650,1714067457274,314.37375901,7.788e-05,2]
[323524651,1714067457569,953.56100761,7.399e-05,2]
[323524652,1714067458228,316.9702796,7.788e-05,2]
[323524653,1714067458336,-1994.88351493,0.00010956,2]
[323524654,1714067458345,-194.44129511,0.00010956,2]
[323524655,1714067458355,-693.85600211,0.00010957,2]
[323524656,1714067458364,-3000.82967405,0.00010957,2]
[323524657,1714067458373,-500.0,0.00010958,2]
[323524658,1714067458383,-500.0,0.00010958,2]
[323524659,1714067458396,-500.0,0.00010958,2]
[323524660,1714067458406,-331.21,0.00011232,2]
[323524661,1714067458415,-561.17,0.00011232,2]
[323524662,1714067458426,-500.0,0.00011232,2]
[323524663,1714067458435,-649.25458927,0.000119,2]
[323524664,1714067458445,-287331.8099595,0.00012,2]
[323524665,1714067458456,-10049.11556207,0.00012,2]
[323524666,1714067458478,-353.72775362,0.00010957,2]
[323524667,1714067458581,-823.29,0.00010957,2]
[323524668,1714067458888,19680.8590078,7.788e-05,2]
[323524669,1714067459156,546.03515344,6.23e-05,2]
[323524670,1714067459302,320.13918775,7.788e-05,2]
[323524671,1714067459341,173.10377099,7.788e-05,2]
[323524672,1714067459556,1374.60563136,7.788e-05,2]
[323524673,1714067459805,871.83841886,7.787e-05,2]
[323524674,1714067460338,871.83841886,7.787e-05,2]
[323524675,1714067461264,866.55039415,7.788e-05,2]
[323524676,1714067461520,871.83841886,7.787e-05,2]
[323524677,1714067461824,288.51985909,7.788e-05,2]
[323524678,1714067461857,559.66150284,7.788e-05,2]
[323524679,1714067461913,943.34796342,7.788e-05,2]
[323524680,1714067467761,1471.99909209,7.788e-05,2]
[323524681,1714067468080,1688.26353927,7.788e-05,2]
[323524682,1714067471652,953.56100761,7.399e-05,2]
[323524683,1714067472494,173.10377099,7.788e-05,2]
[323524684,1714067472777,316.9702796,7.788e-05,2]
[323524685,1714067473154,1374.60563136,7.788e-05,2]
[323524686,1714067475684,546.03515344,6.23e-05,2]
[323524687,1714067476252,320.13918775,7.788e-05,2]
[323524688,1714067476284,559.66150284,7.788e-05,2]
[323524689,1714067477939,19680.8590078,7.788e-05,2]
[323524690,1714067478214,288.51985909,7.788e-05,2]
[323524691,1714067478468,721.7519829,7.788e-05,2]
[323524692,1714067480994,866.55039415,7.787e-05,2]
[323524693,1714067488778,316.9702796,7.787e-05,2]
[323524694,1714067490502,217.7694226,7.787e-05,2]
[323524695,1714067493650,953.56100761,7.398e-05,2]
[323524696,1714067493766,219.29758132,7.787e-05,2]
[323524697,1714067495150,1374.60563136,7.787e-05,2]
[323524698,1714067496610,559.66150284,7.787e-05,2]
[323524699,1714067496645,225.25378928,7.787e-05,2]
[323524700,1714067496680,19680.8590078,7.787e-05,2]
[323524701,1714067497694,374.2296726,6.23e-05,2]
[323524702,1714067500220,167.71968111,7.787e-05,2]
[323524703,1714067500991,866.55039415,7.787e-05,2]
[323524704,1714067508792,316.9702796,7.787e-05,2]
[323524705,1714067509154,1374.60563136,7.787e-05,2]
[323524706,1714067515778,953.56100761,7.398e-05,2]
[323524707,1714067515950,11369.252206,7.787e-05,2]
[323524708,1714067518149,30827.22270808,6.94e-05,2]
[323524709,1714067518272,559.66150284,7.787e-05,2]
[323524710,1714067523242,866.55039415,7.787e-05,2]
[323524711,1714067524792,224.86833527,7.787e-05,2]
[323524712,1714067527199,1374.60563136,7.787e-05,2]
[323524713,1714067531681,953.56100761,7.398e-05,2]
[323524714,1714067538276,559.66150284,7.787e-05,2]
[323524715,1714067545148,1374.60563136,7.787e-05,2]
[323524716,1714067551848,953.56100761,7.398e-05,2]
[323524717,1714067561161,958.80164697,7.787e-05,2]
[323524718,1714067564278,559.66150284,7.787e-05,2]
[323524719,1714067567653,953.56100761,7.398e-05,2]
[323524720,1714067578290,559.66150284,7.787e-05,2]
[323524721,1714067591682,953.56100761,7.028e-05,2]
[323524722,1714067596285,243.84483907,7.398e-05,2]
[323524723,1714067607654,953.56100761,7.028e-05,2]
[323524725,1714067621666,953.56100761,7.028e-05,2]
[323524726,1714067637865,818.12239999,6.677e-05,2]
[323524729,1714068011625,2278.03,8.219e-05,2]
[323524731,1714068510352,2164.12,8.219e-05,2]
[323524741,1714068605714,40000.00000001,8.219e-05,2]
[323524742,1714068625670,9989.72147663,8.219e-05,2]
[323524759,1714068631682,-496.346633,8.66e-05,2]
[323524760,1714068631693,-730.35536255,8.66e-05,2]
[323524761,1714068631705,-1774.1276785,8.66e-05,2]
[323524762,1714068631714,-155.0,8.66e-05,2]
[323524763,1714068631723,-155.0,8.661e-05,2]
[323524764,1714068631733,-533.25146559,8.661e-05,2]
[323524765,1714068631742,-21341.54539046,8.661e-05,2]
[323524766,1714068631753,-387.99999996,8.661e-05,2]
[323524767,1714068631803,-1043.0692964,8.661e-05,2]
[323524768,1714068631812,-359.52096542,8.662e-05,2]
[323524769,1714068631821,-434.11824659,8.662e-05,2]
[323524770,1714068631832,-1174.71351858,8.662e-05,2]
[323524771,1714068631842,-967.84164303,8.662e-05,2]
[323524772,1714068631852,-1244.79978863,8.662e-05,2]
[323524773,1714068631862,-155.64996789,8.663e-05,2]
[323524774,1714068631871,-194.44129511,8.663e-05,2]
[323524775,1714068631879,-538.116345,8.663e-05,2]
[323524776,1714068631890,-313.84557091,8.664e-05,2]
[323524777,1714068631902,-8714.05947489,8.666e-05,2]
[323524778,1714068631911,-1000.0,8.666e-05,2]
[323524779,1714068631920,-150.0,8.669e-05,2]
[323524780,1714068631930,-998.97059424,8.776e-05,2]
[323524781,1714068631940,-4267.7,8.793e-05,2]
[323524782,1714068631948,-172.57,8.794e-05,2]
[323524783,1714068631959,-4029.70644065,8.83e-05,2]
[323524784,1714068632062,-155.0,8.659e-05,2]
[323524785,1714068632071,-594.56,8.83e-05,2]
[323524801,1714068637779,-313.84557091,8.659e-05,2]
[323524803,1714068637788,-19275.73355935,8.83e-05,2]
[323524805,1714068637798,-165.15,8.928e-05,2]
[323524807,1714068637809,-1791.95,8.965e-05,2]
[323524809,1714068637818,-200.0,8.975e-05,2]
[323524811,1714068637828,-160.0,8.995e-05,2]
[323524813,1714068637837,-250.0,8.995e-05,2]
[323524815,1714068637848,-9099.94321408,9e-05,2]
[323524817,1714068637858,-158.92,9.032e-05,2]
[323524818,1714068637868,-150.91,9.034e-05,2]
[323524819,1714068637877,-158.92,9.068e-05,2]
[323524820,1714068637886,-158.92,9.105e-05,2]
[323524821,1714068637896,-158.92,9.141e-05,2]
[323524822,1714068637905,-156.28,9.171e-05,2]
[323524823,1714068637914,-158.92,9.177e-05,2]
[323524824,1714068637923,-156.28,9.179e-05,2]
[323524825,1714068637932,-156.28,9.187e-05,2]
[323524826,1714068637942,-156.28,9.194e-05,2]
[323524827,1714068637952,-156.28,9.202e-05,2]
[323524828,1714068637961,-156.28,9.21e-05,2]
[323524829,1714068637970,-158.92,9.213e-05,2]
[323524830,1714068637979,-156.28,9.217e-05,2]
[323524831,1714068637988,-158.92,9.249e-05,2]
[323524832,1714068637998,-158.92,9.286e-05,2]
[323524833,1714068638006,-158.92,9.322e-05,2]
[323524834,1714068638016,-158.92,9.358e-05,2]
[323524835,1714068638025,-158.92,9.394e-05,2]
[323524836,1714068638034,-158.92,9.43e-05,2]
[323524837,1714068638044,-158.92,9.467e-05,2]
[323524838,1714068638053,-158.92,9.503e-05,2]
[323524839,1714068638062,-210.0,9.536e-05,2]
[323524840,1714068638071,-420.48,9.538e-05,2]
[323524841,1714068638080,-1810.188,9.538e-05,2]
[323524842,1714068638090,-840.0,9.545e-05,2]
[323524843,1714068638099,-499.99,9.67e-05,2]
[323524844,1714068638108,-224.99,9.67e-05,2]
[323524846,1714068638117,-172.57,9.893e-05,2]
[323524848,1714068638127,-208.80554227,0.0001,2]
[323524849,1714068638136,-323.93578704,0.0001,2]
[323524850,1714068638146,-160.0,0.0001012,2]
[323524851,1714068638156,-165.04,0.00010298,2]
[323524852,1714068638165,-1294.31423164,0.00010408,2]
[323524853,1714068638174,-537.35627901,0.00010408,2]
[323524854,1714068638183,-2164.12,0.00010411,2]
[323524855,1714068638192,-781.51595373,0.00010462,2]
[323524856,1714068638202,-684.33553441,0.00010465,2]
[323524857,1714068638211,-150.91,0.00010539,2]
[323524858,1714068638220,-155.30252456,0.000106,2]
[323524859,1714068638230,-840.0,0.00010738,2]
[323524860,1714068638239,-150.0,0.000108,2]
[323524861,1714068638248,-1000.0,0.00010858,2]
[323524862,1714068638257,-2295.441,0.00010858,2]
[323524863,1714068638267,-1999.1162,0.00010858,2]
[323524864,1714068638276,-7500.0,0.00010858,2]
[323524865,1714068638285,-2239.4814,0.00010858,2]
[323524866,1714068638295,-5547.56885349,0.00010955,2]
[323524867,1714068638304,-1869.83981934,0.00010956,2]
[323524868,1714068638313,-5701.72212253,0.00010956,2]
[323524869,1714068638323,-1470.21150395,0.00010957,2]
[323524870,1714068638332,-1808.72074226,0.00010957,2]
[323524871,1714068638341,-500.0,0.00010958,2]
[323524872,1714068638351,-500.0,0.00010958,2]
[323524873,1714068638360,-644.29969513,0.00010958,2]
[323524874,1714068638369,-500.0,0.00010958,2]
[323524875,1714068638379,-500.0,0.00010958,2]
[323524876,1714068638388,-501.4189189,0.00010958,2]
[323524877,1714068638399,-330.53537436,0.00010958,2]
[323524878,1714068638408,-501.35230715,0.00010958,2]
[323524879,1714068638418,-500.0,0.00010958,2]
[323524880,1714068638427,-501.21073607,0.00010958,2]
[323524881,1714068638654,-501.39560467,0.00010958,2]
[323524882,1714068638667,-500.0,0.00010958,2]
[323524883,1714068638677,-500.0,0.00010958,2]
[323524884,1714068638686,-247.42305475,0.00010958,2]
[323524885,1714068638695,-502.40225065,0.00010958,2]
[323524886,1714068638704,-506.11402041,0.00010958,2]
[323524887,1714068638714,-501.75739347,0.00010958,2]
[323524888,1714068638723,-530.04683792,0.00010958,2]
[323524889,1714068638732,-501.1729548,0.00010958,2]
[323524890,1714068638741,-500.0,0.00010958,2]
[323524891,1714068638751,-624.10426463,0.00010958,2]
[323524892,1714068638792,-499.24202349,0.00010958,2]
[323524893,1714068638803,-200.0,0.00010958,10]